bitfinex/quotes_BTCUSD_20250822
["timestamp","ask_amount","ask_price","bid_price","bid_amount"]
[1755876685255,1.49515901,116950.0,116940.0,1.01276528]
[1755876685904,1.49515901,116950.0,116940.0,0.51432528]
[1755876686097,1.49515901,116950.0,116940.0,0.66472528]
[1755876686302,1.49515901,116950.0,116940.0,1.01572528]
[1755876686956,1.49515901,116950.0,116940.0,1.00872528]
[1755876687634,0.96687983,116950.0,116940.0,1.00972528]
[1755876687864,0.96687983,116950.0,116940.0,2.6372183]
[1755876688102,0.96687983,116950.0,116940.0,2.4448373]
[1755876688328,0.96687983,116950.0,116940.0,2.4408373]
[1755876688546,0.96687983,116950.0,116940.0,2.4438373]
[1755876689002,1.49515901,116950.0,116940.0,1.00868528]
[1755876689242,1.49515901,116950.0,116940.0,1.00667528]
[1755876690825,0.96687983,116950.0,116940.0,1.81368428]
[1755876691049,0.96687983,116950.0,116940.0,2.10389428]
[1755876691264,0.43860065,116950.0,116940.0,2.1213433]
[1755876691479,0.43860065,116950.0,116940.0,2.64941012]
[1755876693325,0.4300418,116950.0,116940.0,2.64941012]
[1755876693538,0.4300418,116950.0,116940.0,2.81056125]
[1755876693754,0.42148295,116950.0,116940.0,2.81056125]
[1755876694173,0.42148295,116950.0,116940.0,2.73491012]
[1755876694174,0.4129241,116950.0,116940.0,2.73491012]
[1755876694374,0.4129241,116950.0,116940.0,2.57855012]
[1755876694578,0.40436525,116950.0,116940.0,1.81782911]
[1755876694776,0.40436525,116950.0,116940.0,2.03184993]
[1755876695187,0.40436525,116950.0,116940.0,2.03684993]
[1755876696143,0.40436525,116950.0,116940.0,2.11254272]
[1755876696801,0.40436525,116950.0,116940.0,2.03684993]
[1755876697634,0.40436525,116950.0,116940.0,1.88156993]
[1755876697835,0.40436525,116950.0,116940.0,1.90320593]
[1755876698636,0.40436525,116950.0,116940.0,1.89118012]
[1755876699636,0.40962525,116950.0,116940.0,1.83530912]
[1755876699867,0.40962525,116950.0,116940.0,1.1291234]
[1755876700118,0.40962525,116950.0,116940.0,1.0844724]
[1755876700418,0.40962525,116950.0,116940.0,0.8346824]
[1755876700626,0.40962525,116950.0,116940.0,0.75901528]
[1755876700811,0.40962525,116950.0,116940.0,1.09901528]
[1755876703343,0.40962525,116950.0,116940.0,1.1746824]
[1755876703544,0.40962525,116950.0,116940.0,1.70274922]
[1755876704547,0.39409466,116950.0,116940.0,1.82012938]
[1755876704950,0.39409466,116950.0,116940.0,1.71419894]
[1755876705172,0.39720466,116950.0,116940.0,1.71419894]
[1755876705415,0.39935466,116950.0,116940.0,1.71419894]
[1755876705617,0.39935466,116950.0,116940.0,1.55899894]
[1755876705751,0.39935466,116950.0,116940.0,1.71415894]
[1755876706582,0.39935466,116950.0,116940.0,1.18609212]
[1755876706744,0.39935466,116950.0,116940.0,1.71415894]
[1755876707382,0.39409466,116950.0,116940.0,1.63849182]
[1755876707728,0.39409466,116950.0,116940.0,1.71424317]
[1755876708093,0.39409466,116950.0,116940.0,1.63849182]
[1755876708779,0.39409466,116950.0,116940.0,2.16655864]
[1755876708991,0.39409466,116950.0,116940.0,1.48333182]
[1755876709197,0.39915466,116950.0,116940.0,1.63841182]
[1755876709571,0.39702466,116950.0,116940.0,1.48333182]
[1755876709717,0.39409466,116950.0,116940.0,1.63841182]
[1755876710495,0.39409466,116950.0,116940.0,1.74434226]
[1755876711266,0.39409466,116950.0,116940.0,3.7029261]
[1755876711509,0.39409466,116950.0,116940.0,3.37485928]
[1755876711926,0.23234526,116950.0,116940.0,3.9029261]
[1755876712143,0.22921739,116950.0,116940.0,3.79699566]
[1755876712914,0.22839755,116950.0,116940.0,3.79699566]
[1755876713112,0.1729398,116950.0,116940.0,4.08983463]
[1755876713326,0.0002,116980.0,116970.0,0.99765902]
[1755876713553,0.0002,116980.0,116970.0,3.53874484]
[1755876713760,0.0002,116980.0,116970.0,2.09283184]
[1755876713761,0.00526,116980.0,116970.0,2.09283184]
[1755876714003,0.00526,116980.0,116970.0,1.89283184]
[1755876714148,0.00526,116980.0,116970.0,1.55435682]
[1755876714450,0.00526,116980.0,116970.0,1.75831682]
[1755876714660,0.00526,116980.0,116970.0,1.77129045]
[1755876715307,0.00526,116980.0,116970.0,1.81023944]
[1755876716365,0.00526,116980.0,116970.0,1.65523944]
[1755876716572,0.00526,116980.0,116970.0,1.65923944]
[1755876716750,0.00526,116980.0,116970.0,1.81423944]
[1755876718863,0.00526,116980.0,116970.0,1.28613262]
[1755876719109,0.00526,116980.0,116970.0,1.81419944]
[1755876719524,0.00526,116980.0,116970.0,1.28613262]
[1755876719766,0.00526,116980.0,116970.0,1.81419944]
[1755876721619,0.00526,116980.0,116970.0,1.13117262]
[1755876721984,0.53332682,116980.0,116970.0,1.08609262]
[1755876722266,0.53332682,116980.0,116970.0,1.28609262]
[1755876722925,0.52832682,116980.0,116970.0,1.19588262]
[1755876723130,0.52832682,116980.0,116970.0,1.11669517]
[1755876723300,0.5182991,116980.0,116970.0,0.65584262]
[1755876723540,0.5204291,116980.0,116970.0,0.96177306]
[1755876723974,0.53019682,116980.0,116970.0,1.30177306]
[1755876724391,0.53019682,116980.0,116970.0,1.04096262]
[1755876724591,0.53019682,116980.0,116970.0,1.19584262]
[1755876724996,0.53312682,116980.0,116970.0,1.19584262]
[1755876725375,0.53312682,116980.0,116970.0,1.19184262]
[1755876726619,0.53019682,116980.0,116970.0,1.19000262]
[1755876726964,0.52906682,116980.0,116970.0,1.47978061]
[1755876727222,0.52906682,116980.0,116970.0,1.48297061]
[1755876727394,0.52906682,116980.0,116970.0,1.58691105]
[1755876728071,0.53119682,116980.0,116970.0,1.58319105]
[1755876728271,0.53019682,116980.0,116970.0,1.58103105]
[1755876728479,0.53312682,116980.0,116970.0,1.58013105]
[1755876728682,0.53312682,116980.0,116970.0,1.58213105]
[1755876729100,0.53312682,116980.0,116970.0,1.58159105]
[1755876729523,0.52806682,116980.0,116970.0,1.58375105]
[1755876729727,0.53019682,116980.0,116970.0,1.58375105]
[1755876730210,0.00213,116980.0,116970.0,1.58175105]
[1755876730492,0.53312682,116980.0,116970.0,1.57959105]
[1755876730715,0.53312682,116980.0,116970.0,1.09238105]
[1755876730858,0.53312682,116980.0,116970.0,1.29238105]
[1755876731065,0.53312682,116980.0,116970.0,0.98645061]
[1755876731243,0.53312682,116980.0,116970.0,1.06210748]
[1755876731961,0.53312682,116980.0,116970.0,1.26210748]
[1755876732167,0.53312682,116980.0,116970.0,1.06210748]
[1755876732352,0.53312682,116980.0,116970.0,1.26210748]
[1755876732983,0.53312682,116980.0,116970.0,0.98645061]
[1755876733186,0.00506,116980.0,116970.0,0.98645061]
[1755876733392,0.53312682,116980.0,116970.0,1.09238105]
[1755876734368,0.00213,116980.0,116970.0,1.09454105]
[1755876734585,0.53099682,116990.0,116970.0,1.09364105]
[1755876734809,0.00506,116980.0,116970.0,0.92362742]
[1755876735012,0.00506,116980.0,116970.0,1.16747217]
[1755876735013,0.53019682,116980.0,116970.0,1.16747217]
[1755876735423,0.00213,116980.0,116970.0,1.16747217]
[1755876735827,0.00213,116980.0,116970.0,1.16447217]
[1755876736291,0.00506,116980.0,116970.0,1.16431217]
[1755876736463,0.52806682,116980.0,116970.0,1.16647217]
[1755876736676,0.53019682,116980.0,116970.0,1.16647217]
[1755876736994,0.00213,116980.0,116970.0,1.16447217]
[1755876737200,0.53019682,116980.0,116970.0,1.16447217]
[1755876738491,0.53339682,116980.0,116970.0,1.16231217]
[1755876738694,0.53339682,116980.0,116970.0,1.05638173]
[1755876738897,0.53339682,116980.0,116970.0,1.16230564]
[1755876739323,0.00213,116980.0,116970.0,1.06149173]
[1755876739528,0.53339682,116980.0,116970.0,1.16531543]
[1755876739736,0.53339682,116980.0,116970.0,1.05938173]
[1755876739938,0.53339682,116980.0,116970.0,1.32608173]
[1755876740931,0.51992797,116980.0,116970.0,1.43420712]
[1755876741158,0.0232,117000.0,116970.0,1.17056712]
[1755876741360,0.53126682,116990.0,116980.0,0.35796419]
[1755876741568,0.53333682,116990.0,116980.0,0.35476]
[1755876741768,0.53333682,116990.0,116980.0,0.46077539]
[1755876742001,0.53013682,116990.0,116980.0,0.46077539]
[1755876742611,0.53013682,116990.0,116980.0,0.54774273]
[1755876742820,0.53333682,116990.0,116980.0,0.54774273]
[1755876743224,0.00527,116990.0,116980.0,0.54774273]
[1755876743865,0.00527,116990.0,116980.0,0.39298273]
[1755876744073,0.00527,116990.0,116980.0,0.54970273]
[1755876744698,0.00627,116990.0,116980.0,0.54970273]
[1755876744882,0.00627,116990.0,116980.0,0.57538773]
[1755876745896,0.00627,116990.0,116980.0,0.46937234]
[1755876746444,0.00627,116990.0,116980.0,0.57538773]
[1755876747295,0.00307,116990.0,116980.0,0.57538773]
[1755876747504,0.00307,116990.0,116980.0,0.57749773]
[1755876748559,0.001,116990.0,116980.0,1.30862455]
[1755876749000,0.001,116990.0,116980.0,0.78055773]
[1755876749210,0.001,116990.0,116980.0,1.30862455]
[1755876749421,0.001,116990.0,116980.0,1.20260916]
[1755876749665,0.001,116990.0,116980.0,0.67454234]
[1755876749875,0.001,116990.0,116980.0,1.20260916]
[1755876750078,0.001,116990.0,116980.0,1.54260916]
[1755876750294,0.001,116990.0,116980.0,1.08022234]
[1755876750499,0.001,116990.0,116980.0,1.60828916]
[1755876750925,0.01073297,117000.0,116990.0,0.49]
[1755876751180,0.01073297,117000.0,116990.0,1.26480157]
[1755876751386,0.01073297,117000.0,116990.0,0.73673475]
[1755876751608,0.01280297,117000.0,116990.0,0.49973763]
[1755876752003,0.01280297,117000.0,116990.0,0.69973763]
[1755876752537,0.01073297,117000.0,116990.0,0.70279763]
[1755876752741,0.01073297,117000.0,116990.0,0.59673475]
[1755876753194,0.01273297,117000.0,116990.0,0.59673475]
[1755876753393,0.01273297,117000.0,116990.0,0.59773475]
[1755876753630,0.01800297,117000.0,116990.0,0.93256475]
[1755876753839,0.01800297,117000.0,116990.0,0.49861958]
[1755876754044,0.01800297,117000.0,116990.0,0.34861958]
[1755876755304,0.01480297,117000.0,116990.0,0.35072958]
[1755876755734,0.01480297,117000.0,116990.0,0.50072958]
[1755876755995,0.01480297,117000.0,116990.0,0.70072958]
[1755876756255,0.01273297,117000.0,116990.0,0.70378958]
[1755876757568,0.01480297,117000.0,116990.0,0.70072958]
[1755876757828,0.01800297,117000.0,116990.0,0.69861958]
[1755876758033,0.01800297,117000.0,116990.0,0.39393958]
[1755876758204,0.54606979,117000.0,116990.0,0.34853958]
[1755876758623,0.01800297,117000.0,116990.0,0.34853958]
[1755876758813,0.01273297,117000.0,116990.0,0.35064958]
[1755876759020,0.01273297,117000.0,116990.0,0.24765475]
[1755876760190,0.01273297,117000.0,116990.0,0.27333675]
[1755876760777,0.01273297,117000.0,116990.0,0.96333675]
[1755876761016,0.01273297,117000.0,116990.0,1.06939158]
[1755876761470,0.01480297,117000.0,116990.0,0.91173158]
[1755876761653,0.01273297,117000.0,116990.0,1.06939158]
[1755876762819,0.01480297,117000.0,116990.0,1.06633158]
[1755876763214,0.01800297,117000.0,116990.0,1.06422158]
[1755876763464,0.01800297,117000.0,116990.0,0.36962158]
[1755876763681,0.54606979,117000.0,116990.0,0.86418158]
[1755876763900,0.01800297,117000.0,116990.0,0.86418158]
[1755876764519,0.01480297,117000.0,116990.0,0.86629158]
[1755876764924,0.01480297,117000.0,116990.0,0.86935158]
[1755876765359,0.01480297,117000.0,116990.0,0.93503158]
[1755876765568,0.01480297,117000.0,116990.0,0.93197158]
[1755876765768,0.01800297,117000.0,116990.0,0.92986158]
[1755876767005,0.01273297,117000.0,116990.0,0.93503158]
[1755876767835,0.01471297,117000.0,116990.0,0.93503158]
[1755876768007,0.01471297,117000.0,116990.0,0.93197158]
[1755876768258,0.01794297,117000.0,116990.0,0.92986158]
[1755876768451,0.54600979,117000.0,116990.0,0.77986158]
[1755876769036,0.54600979,117000.0,116990.0,0.43986158]
[1755876769999,0.01794297,117000.0,116990.0,0.43986158]
[1755876770207,0.54600979,117000.0,116990.0,0.43986158]
[1755876770412,0.01794297,117000.0,116990.0,0.43986158]
[1755876770585,0.54600979,117000.0,116990.0,0.43986158]
[1755876771844,0.01794297,117000.0,116990.0,0.43986158]
[1755876772267,0.54600979,117000.0,116990.0,0.43986158]
[1755876772473,0.55865692,117000.0,116990.0,0.43986158]
[1755876773495,0.55542692,117000.0,116990.0,0.44202158]
[1755876773693,0.01471297,117000.0,116990.0,0.44496158]
[1755876774097,0.01471297,117000.0,116990.0,0.44202158]
[1755876774898,0.01471297,117000.0,116990.0,0.43986158]
[1755876775104,0.01794297,117000.0,116990.0,0.43986158]
[1755876775314,0.55865692,117000.0,116990.0,0.43986158]
[1755876775915,0.01794297,117000.0,116990.0,0.43986158]
[1755876776080,0.01471297,117000.0,116990.0,0.44202158]
[1755876776282,0.01471297,117000.0,116990.0,0.43986158]
[1755876776498,0.01471297,117000.0,116990.0,0.44202158]
[1755876776718,0.01273297,117000.0,116990.0,0.44496158]
[1755876776920,0.01471297,117000.0,116990.0,0.44202158]
[1755876777169,0.01273297,117000.0,116990.0,0.44496158]
[1755876779911,0.01273297,117000.0,116990.0,0.98567553]
[1755876780220,0.01273297,117000.0,116990.0,0.44496158]
[1755876780642,0.01273297,117000.0,116990.0,0.59496158]
[1755876780840,0.01273297,117000.0,116990.0,0.79496158]
[1755876781077,0.01273297,117000.0,116990.0,1.5696207]
[1755876781254,0.01273297,117000.0,116990.0,1.02890675]
[1755876781496,0.01273297,117000.0,116990.0,1.5696207]
[1755876784116,0.01273297,117000.0,116990.0,1.02890675]
[1755876784288,0.01273297,117000.0,116990.0,1.8363207]
[1755876785316,0.01273297,117000.0,116990.0,0.94560675]
[1755876785571,0.01273297,117000.0,116990.0,1.29560675]
[1755876785762,0.00424478,117000.0,116990.0,1.40183471]
[1755876785968,0.00424478,117000.0,116990.0,1.94254866]
[1755876786161,0.00622478,117000.0,116990.0,1.93960866]
[1755876786294,0.00622478,117000.0,116990.0,1.39889471]
[1755876786507,0.00622478,117000.0,116990.0,1.24889471]
[1755876786724,0.55016873,117000.0,116990.0,0.62547471]
[1755876786913,0.00945478,117000.0,116990.0,0.77995471]
[1755876787451,0.00945478,117000.0,116990.0,0.77991471]
[1755876788129,0.00945478,117000.0,116990.0,0.28547471]
[1755876788130,0.55016873,117000.0,116990.0,0.28547471]
[1755876788366,0.55016873,117000.0,116990.0,0.43991471]
[1755876788569,0.55016873,117000.0,116990.0,0.30800475]
[1755876788774,0.55016873,117000.0,116990.0,0.38386444]
[1755876788982,0.00945478,117000.0,116990.0,0.38386444]
[1755876789228,0.55016873,117000.0,116990.0,0.38386444]
[1755876790505,1.11891911,117000.0,116990.0,0.31818444]
[1755876790717,1.11891911,117000.0,116990.0,0.15544]
[1755876790903,1.11891911,117000.0,116990.0,0.001]
[1755876790904,1.68391911,117000.0,116990.0,0.001]
[1755876791068,1.68391911,117000.0,116990.0,0.15544]
[1755876791474,1.68191911,117000.0,116990.0,0.15544]
[1755876791880,1.68991911,117000.0,116990.0,0.15544]
[1755876792120,1.68991911,117000.0,116990.0,0.15444]
[1755876792256,0.60849121,117000.0,116990.0,0.15444]
[1755876792461,1.66516813,117000.0,116990.0,0.15444]
[1755876792863,0.60849121,117000.0,116990.0,0.15444]
[1755876793256,1.66516813,117000.0,116990.0,0.15444]
[1755876794810,1.13682967,117000.0,116990.0,0.15444]
[1755876795298,0.5979038,117000.0,116990.0,0.15444]
[1755876795499,1.12624226,117000.0,116990.0,0.15444]
[1755876796331,0.90124226,117000.0,116990.0,0.15444]
[1755876796538,1.12624226,117000.0,116990.0,0.15444]
[1755876796762,1.13705494,117000.0,116990.0,0.15444]
[1755876797249,0.01744902,116990.0,116980.0,8.259e-05]
[1755876797464,1.11805597,116990.0,116980.0,8.259e-05]
[1755876797680,1.21591748,116990.0,116980.0,8.259e-05]
[1755876798331,1.30280223,116990.0,116980.0,8.259e-05]
[1755876798968,1.83114069,116990.0,116980.0,8.259e-05]
[1755876799315,1.30280223,116990.0,116980.0,8.259e-05]
[1755876799923,0.77646377,116990.0,116980.0,8.259e-05]
[1755876800130,1.30480223,116990.0,116980.0,8.259e-05]
[1755876800362,1.31818169,116990.0,116980.0,8.259e-05]
[1755876800775,1.31618169,116990.0,116980.0,8.259e-05]
[1755876800945,0.58244902,116960.0,116950.0,0.07064953]
[1755876801151,1.11294748,116960.0,116950.0,0.07079388]
[1755876801600,1.11591748,116960.0,116950.0,0.07079388]
[1755876802335,1.21591748,116960.0,116950.0,0.07079388]
[1755876802485,1.74425594,116960.0,116950.0,0.00014435]
[1755876803092,1.89869594,116960.0,116950.0,0.00014435]
[1755876803542,1.98558069,116960.0,116950.0,0.00014435]
[1755876803747,1.98858069,116960.0,116950.0,0.00064435]
[1755876803977,0.93190377,116960.0,116950.0,0.00064435]
[1755876804178,1.46024223,116960.0,116950.0,0.00064435]
[1755876804610,1.98858069,116960.0,116950.0,0.00064435]
[1755876806089,0.93190377,116960.0,116950.0,0.00064435]
[1755876806307,1.46024223,116960.0,116950.0,0.00064435]
[1755876806726,1.21891748,116960.0,116950.0,0.00064435]
[1755876806950,0.99391748,116960.0,116950.0,0.00064435]
[1755876807159,1.21891748,116960.0,116950.0,0.00064435]
[1755876810598,0.99391748,116960.0,116950.0,0.00064435]
[1755876810827,1.74725594,116960.0,116950.0,0.00064435]
[1755876811491,1.83414069,116960.0,116950.0,0.00064435]
[1755876812787,1.84752195,116960.0,116950.0,0.00064435]
[1755876813406,1.87322795,116960.0,116950.0,0.00064435]
[1755876814015,1.94671634,116960.0,116950.0,0.00064435]
[1755876814298,1.88233819,116960.0,116950.0,0.00064435]
[1755876815566,2.01340669,116960.0,116950.0,0.00064435]
[1755876815868,2.01740669,116960.0,116950.0,0.00064435]
[1755876816064,2.03334857,116960.0,116950.0,0.00064435]
[1755876816764,2.01740669,116960.0,116950.0,0.00064435]
[1755876816980,2.03335154,116960.0,116950.0,0.00064435]
[1755876817525,0.90314931,116960.0,116950.0,0.00274435]
[1755876817757,0.75933846,116960.0,116950.0,0.00587435]
[1755876817978,0.53433846,116960.0,116950.0,0.00587435]
[1755876818208,0.006,116960.0,116950.0,0.00587435]
[1755876818439,0.55394748,116960.0,116950.0,0.00274435]
[1755876818661,0.65691748,116960.0,116950.0,0.00064435]
[1755876819104,0.64794748,116960.0,116950.0,0.00274435]
[1755876819382,0.64894748,116960.0,116950.0,0.00274435]
[1755876820082,0.54894748,116960.0,116950.0,0.00274435]
[1755876820289,0.01844902,116960.0,116950.0,0.00274435]
[1755876820493,0.54945933,116960.0,116950.0,0.00587435]
[1755876820791,0.54678748,116960.0,116950.0,0.00687435]
[1755876822407,0.54894748,116960.0,116950.0,0.00164435]
[1755876822999,0.54894748,116960.0,116950.0,0.00374435]
[1755876825319,0.54678748,116960.0,116950.0,0.00687435]
[1755876825469,0.54894748,116960.0,116950.0,0.00374435]
[1755876825676,0.54894748,116960.0,116950.0,0.00164435]
[1755876825873,0.54894748,116960.0,116950.0,0.00374435]
[1755876826282,0.02060902,116960.0,116950.0,0.00374435]
[1755876826478,0.55161933,116960.0,116950.0,0.00164435]
[1755876826676,0.55191748,116960.0,116950.0,0.00164435]
[1755876826892,0.54894748,116960.0,116950.0,0.00374435]
[1755876827066,0.54888748,116960.0,116950.0,0.00374435]
[1755876828948,0.54678748,116960.0,116950.0,0.00374435]
[1755876829157,0.54678748,116960.0,116950.0,0.00690435]
[1755876831173,0.01844902,116960.0,116950.0,0.00690435]
[1755876831399,0.54945933,116960.0,116950.0,0.00690435]
[1755876831620,0.001,116960.0,116950.0,0.0937891]
[1755876832307,0.001,116960.0,116950.0,0.09485673]
[1755876832552,0.126,116960.0,116950.0,0.0937891]
[1755876832808,0.01744902,116970.0,116950.0,0.09385673]
[1755876833033,0.01744902,116970.0,116960.0,0.09004475]
[1755876833260,0.01744902,116970.0,116960.0,0.24660475]
[1755876833736,0.00267139,116980.0,116960.0,0.24660475]
[1755876833958,0.02012041,116980.0,116960.0,0.24660475]
[1755876834205,0.02012041,116980.0,116970.0,0.00316]
[1755876834432,0.02012041,116980.0,116970.0,0.00532]
[1755876835373,0.02222041,116980.0,116970.0,0.00532]
[1755876835600,0.02222041,116980.0,116970.0,0.00216]
[1755876836055,0.02521041,116980.0,116960.0,0.24128475]
[1755876836508,0.25021041,116980.0,116970.0,0.002]
[1755876836750,0.77587748,116980.0,116970.0,0.002]
[1755876837182,0.01744902,116970.0,116960.0,0.08688475]
[1755876837425,0.02012064,116970.0,116960.0,0.08788475]
[1755876837601,0.02222064,116970.0,116960.0,0.08788475]
[1755876838468,0.02222064,116970.0,116960.0,0.09004475]
[1755876838701,0.02222064,116970.0,116960.0,0.08788475]
[1755876838950,0.02521064,116970.0,116960.0,0.08688475]
[1755876839178,0.02222064,116970.0,116960.0,0.08904475]
[1755876839843,0.02222064,116970.0,116960.0,0.09104475]
[1755876840333,0.02222064,116970.0,116960.0,0.09204475]
[1755876840562,0.02012064,116970.0,116960.0,0.09204475]
[1755876840802,0.02222064,116970.0,116960.0,0.09520475]
[1755876841028,0.02222064,116970.0,116960.0,0.08988475]
[1755876841266,0.02222064,116970.0,116960.0,0.09204475]
[1755876842639,0.02012064,116970.0,116960.0,0.09520475]
[1755876842870,0.02222064,116970.0,116960.0,0.09204475]
[1755876843097,0.12521064,116970.0,116960.0,0.003]
[1755876843323,0.12222064,116970.0,116960.0,0.15736]
[1755876843555,0.02222064,116970.0,116960.0,0.15736]
[1755876843771,0.02012064,116970.0,116960.0,0.16268]
[1755876844478,0.02012064,116970.0,116960.0,0.15768]
[1755876844701,0.02012064,116970.0,116960.0,0.24456475]
[1755876845615,0.01744902,116970.0,116960.0,0.24456475]
[1755876846064,0.225,116980.0,116960.0,0.77290321]
[1755876846288,0.24244902,116980.0,116970.0,0.15260475]
[1755876846539,0.24244902,116980.0,116970.0,0.15792475]
[1755876847207,0.24244902,116980.0,116970.0,0.31228475]
[1755876848736,0.24244902,116980.0,116970.0,0.31224475]
[1755876849153,0.24454902,116980.0,116970.0,0.30908475]
[1755876850039,0.24454902,116980.0,116970.0,0.15476475]
[1755876850300,0.24454902,116980.0,116970.0,0.30908475]
[1755876851221,0.24454902,116980.0,116970.0,0.15476475]
[1755876851428,0.24454902,116980.0,116970.0,0.30908475]
[1755876852438,0.7855574,116980.0,116970.0,0.30908475]
[1755876852669,0.7855574,116980.0,116970.0,0.24120475]
[1755876852936,0.01744902,116970.0,116950.0,0.06952435]
[1755876853162,0.56112925,116960.0,116950.0,0.1564091]
[1755876853335,0.01744902,116960.0,116950.0,0.3128891]
[1755876853535,0.02012087,116960.0,116950.0,0.3128891]
[1755876853978,0.01744902,116960.0,116950.0,0.3128891]
[1755876854180,0.225,116970.0,116950.0,0.3138891]
[1755876854385,0.01744902,116970.0,116960.0,0.08688475]
[1755876854599,0.02012064,116970.0,116960.0,0.09004475]
[1755876854714,0.24512064,116970.0,116960.0,0.09220475]
[1755876854925,0.24244902,116970.0,116960.0,0.09220475]
[1755876856215,0.02044902,116970.0,116960.0,0.09220475]
[1755876856432,0.24812064,116970.0,116960.0,0.09220475]
[1755876856646,0.24544902,116970.0,116960.0,0.09220475]
[1755876857064,0.24544902,116970.0,116960.0,0.09320475]
[1755876857495,0.02044902,116970.0,116960.0,0.09320475]
[1755876857701,0.02312064,116970.0,116960.0,0.09320475]
[1755876857879,0.25018064,116970.0,116960.0,0.09004475]
[1755876858109,0.24750902,116970.0,116960.0,0.24216475]
[1755876858314,0.24750902,116970.0,116960.0,0.24512475]
[1755876858518,0.02250902,116970.0,116960.0,0.24512475]
[1755876858733,0.25018064,116970.0,116960.0,0.24512475]
[1755876858941,0.24750902,116970.0,116960.0,0.24512475]
[1755876859856,0.02250902,116970.0,116960.0,0.24512475]
[1755876860063,0.25018064,116970.0,116960.0,0.24512475]
[1755876860280,0.02250902,116970.0,116960.0,0.24512475]
[1755876860482,0.25018064,116970.0,116960.0,0.24512475]
[1755876860713,0.24750902,116970.0,116960.0,0.24806475]
[1755876860923,0.24750902,116970.0,116960.0,0.09084475]
[1755876861136,0.25073902,116970.0,116960.0,0.15628]
[1755876861342,0.77908801,116970.0,116960.0,0.15628]
[1755876861767,0.77908801,116970.0,116960.0,0.002]
[1755876861971,0.77585801,116970.0,116960.0,0.15824]
[1755876862381,0.24750902,116970.0,116960.0,0.15824]
[1755876863264,0.24750902,116970.0,116960.0,0.15628]
[1755876863672,0.24544902,116970.0,116960.0,0.15824]
[1755876863898,0.228,116970.0,116960.0,0.24806475]
[1755876864319,0.003,116970.0,116960.0,0.24806475]
[1755876864564,0.00567162,116970.0,116960.0,0.24806475]
[1755876865677,0.00700162,116970.0,116960.0,0.09378475]
[1755876865884,0.00700162,116970.0,116960.0,0.24512475]
[1755876866094,0.00700162,116970.0,116960.0,0.09084475]
[1755876866306,0.00700162,116970.0,116960.0,0.24512475]
[1755876866512,0.00700162,116970.0,116960.0,0.24316475]
[1755876866730,0.78100963,116970.0,116960.0,0.15624]
[1755876866895,0.24998902,116970.0,116960.0,0.15624]
[1755876867527,0.02498902,116970.0,116960.0,0.15624]
[1755876867737,0.25266064,116970.0,116960.0,0.15624]
[1755876867970,0.24998902,116970.0,116960.0,0.15624]
[1755876868378,0.77833801,116970.0,116960.0,0.15624]
[1755876868797,0.24998902,116970.0,116960.0,0.002]
[1755876868995,0.24998902,116970.0,116960.0,0.15624]
[1755876869427,0.34998902,116970.0,116960.0,0.002]
[1755876869645,0.35000902,116970.0,116960.0,0.002]
[1755876869866,0.35000902,116970.0,116960.0,0.15624]
[1755876870225,0.35000902,116970.0,116960.0,0.002]
[1755876870453,0.35000902,116970.0,116960.0,0.15624]
[1755876870934,0.24544902,116970.0,116960.0,0.16114]
[1755876871147,0.325,116980.0,116960.0,0.23178953]
[1755876871378,0.225,116990.0,116970.0,0.52834899]
[1755876871627,0.00206,116990.0,116980.0,0.06682]
[1755876871923,0.23296116,116990.0,116980.0,0.06572]
[1755876872195,0.23029,116990.0,116980.0,0.06682]
[1755876872414,0.23029,116990.0,116980.0,0.06572]
[1755876872647,0.34,116990.0,116980.0,0.06682]
[1755876872886,0.57029,116990.0,116980.0,0.06572]
[1755876873159,0.565,116990.0,116980.0,0.2241]
[1755876873612,0.57029,116990.0,116980.0,0.2241]
[1755876873850,0.57029,116990.0,116980.0,0.223]
[1755876874349,1.09863899,116990.0,116980.0,0.223]
[1755876874592,1.11608801,116990.0,116980.0,0.22308]
[1755876874820,1.11608801,116990.0,116980.0,0.22408]
[1755876875054,1.11608801,116990.0,116980.0,0.06672]
[1755876875265,1.11608801,116990.0,116980.0,0.22416]
[1755876876327,1.11608801,116990.0,116980.0,0.06672]
[1755876876535,0.58773902,116990.0,116980.0,0.06672]
[1755876876745,1.11402801,116990.0,116980.0,0.06672]
[1755876876969,1.11402801,116990.0,116980.0,0.06782]
[1755876876970,1.11079801,116990.0,116980.0,0.06782]
[1755876877193,0.89108801,116990.0,116980.0,0.06782]
[1755876877406,0.58567902,116990.0,116980.0,0.06782]
[1755876877621,1.11608801,116990.0,116980.0,0.06672]
[1755876878329,0.58244902,116990.0,116980.0,0.06782]
[1755876878558,0.565,116990.0,116980.0,0.15470475]
[1755876880722,0.565,116990.0,116980.0,0.31258475]
[1755876881326,0.57029,116990.0,116980.0,0.31148475]
[1755876881527,1.09863899,116990.0,116980.0,0.24476475]
[1755876881733,1.09863899,116990.0,116980.0,0.24464475]
[1755876882750,0.57029,116990.0,116980.0,0.24574475]
[1755876883541,0.57029,116990.0,116980.0,0.24464475]
[1755876883753,1.62698798,116990.0,116980.0,0.02220815]
[1755876883958,1.40198798,116990.0,116980.0,0.01620815]
[1755876884294,1.62698798,116990.0,116980.0,0.01620815]
[1755876884701,0.52834899,116970.0,116960.0,0.06572]
[1755876884881,0.52834899,116970.0,116960.0,0.22388]
[1755876885105,0.52834899,116970.0,116960.0,0.22498]
[1755876885521,0.52834899,116970.0,116960.0,0.15439475]
[1755876885729,0.52834899,116970.0,116960.0,0.31354193]
[1755876885946,0.52834899,116970.0,116960.0,0.31547475]
[1755876886351,0.52834899,116970.0,116960.0,0.15670475]
[1755876886612,0.52834899,116970.0,116960.0,0.31577193]
[1755876886832,0.34,116960.0,116950.0,0.10439358]
[1755876886969,1.39669798,116960.0,116950.0,0.26243358]
[1755876887602,1.05669798,116960.0,116950.0,0.26243358]
[1755876887809,1.05730084,116960.0,116950.0,0.26243358]
[1755876888633,1.05730084,116960.0,116950.0,0.26743358]
[1755876888837,1.05730084,116960.0,116950.0,0.27043358]
[1755876893812,1.05730084,116960.0,116950.0,0.35731833]
[1755876894438,0.22823,116980.0,116950.0,0.35731833]
[1755876894640,0.225,116980.0,116960.0,0.08795193]
[1755876894846,0.00316,116970.0,116960.0,0.08795193]
[1755876895262,0.00529,116970.0,116960.0,0.24551193]
[1755876895470,0.00529,116970.0,116960.0,0.24444475]
[1755876895675,1.06259084,116970.0,116960.0,0.24444475]
[1755876895878,1.06259084,116970.0,116960.0,0.08688475]
[1755876896128,1.06259084,116970.0,116960.0,0.24547193]
[1755876896344,1.62923314,116970.0,116960.0,0.24440475]
[1755876896557,1.62923314,116970.0,116960.0,0.24640475]
[1755876897254,1.62923314,116970.0,116960.0,0.24840475]
[1755876897936,1.62710314,116970.0,116960.0,0.24840475]
[1755876898140,1.62394314,116970.0,116960.0,0.24840475]
[1755876899695,1.62710314,116970.0,116960.0,0.24840475]